{"text_format":"1","workbook":"xlsx","n_sheets":1,"sheets":["207"],"not_rendered":{"charts":0,"images":0,"macros":1,"external_links":0,"defined_names":1,"comments":0,"pivot_tables":0},"unopened":[],"bounds":{"document_bytes":16777216,"sheet_cells":100000,"rows_first":2000,"rows_last":500,"rows_between":2000,"halvings":0,"cell_chars":16384,"cell_head_chars":4096},"cells_cut":0,"cells_raw":0,"read":"whole","date_system":"1900"}

{"sheet":"207","index":0,"n_rows":93,"n_cols":26,"rows_kept":93,"cut":false,"hidden":false,"merged":[[2,0,3,1],[51,14,52,15],[54,14,55,15],[56,14,57,15],[13,8,13,10],[13,14,13,15],[16,8,16,10],[16,14,16,15],[29,14,29,15],[37,14,37,15],[49,14,49,15],[45,14,46,15],[11,1,12,5],[11,6,12,6],[11,8,12,10],[13,0,13,5],[11,11,12,13],[11,14,12,15],[19,0,20,0],[19,8,19,10],[19,14,19,15],[20,8,20,10],[20,14,20,15],[23,1,23,5],[23,8,23,10],[23,14,23,15],[26,1,26,5],[26,8,26,10],[26,14,26,15],[30,1,30,5],[30,8,30,10],[30,14,30,15],[27,1,27,5],[27,8,27,10],[27,14,27,15],[28,1,28,5],[28,8,28,10],[28,14,28,15],[29,1,29,5],[29,8,29,10],[38,1,38,5],[38,8,38,10],[38,14,38,15],[31,1,31,5],[31,8,31,10],[31,14,31,15],[32,1,32,5],[32,8,32,10],[32,14,32,15],[37,8,37,10],[41,8,41,10],[41,14,41,15],[42,1,42,5],[42,8,42,10],[42,14,42,15],[48,1,48,5],[48,8,48,10],[48,14,48,15],[5,8,6,9],[54,1,54,5],[54,8,54,10],[51,8,51,10],[50,1,50,5],[50,8,50,10],[52,8,52,10],[53,1,53,5],[53,8,53,10],[49,1,49,5],[49,8,49,10],[37,1,37,5],[41,1,41,5],[43,14,43,15],[44,14,44,15],[45,9,46,10],[45,6,46,6],[45,7,46,8],[43,11,43,13],[44,11,44,13],[45,11,46,13]]}
["ピアザ淡海　滋賀県立県民交流センター"]
["■付帯設備使用申込書"]
[207,null,"会議室（操作卓あり）",null,null,null,null,null,"指定管理者",null,null,null,null,null,null," 株式会社 コンベンションリンケージ　"]
[null,null,null,null,"年","月","日","曜日",null,null,null,null,"h:mm",null,"h:mm","←記入例"]
[null,null,"利用日",null,null,null,null,null,null,null,"本番時間",null,null,"～"]
["備考",null,null,null,null,null,null,null,"使用区分",null,null,null,"午前　午後　夜間"]
[null,null,null,null,null,null,null,null,null,null,null,null,null,null,null,null,null,false,false,false,{"$f":"SUM(R7:T7)","v":0},false,false,false]
[null,"＜＜＜     　　207会議室には操作卓があり、音響・映像設備をセットしております。",null,null,null,null,null,null,null,null,null,null,null,null,"＞＞＞"]
[null,"＜＜＜",null,"映像設備は、プロジェクターを使ってのスクリーンへの映写となります。",null,null,null,null,null,null,null,null,null,null,"＞＞＞"]
[]
["●電気使用料が発生した場合のみ"]
[null,"品　　　　　　名",null,null,null,null,"単位","1区分","数　量",null,null,"区　分",null,null,"金　額"]
[null,null,null,null,null,null,null,"使用料",null,null,null,null,null,null,null,null,null,null,null,null,"計"]
["         インターネット回線",null,null,null,null,null,1,1100,null,null,null,"A","P","N",{"$f":"H14*U14","v":0},null,{"$f":"\"コンセント\"&$I$14","v":"コンセント"},{"$f":"IF(V14,1)","v":false},{"$f":"IF(W14,1)","v":false},{"$f":"IF(X14,1)","v":false},{"$f":"SUM(R14:T14)","v":0},false,false,false,null,{"$f":"\"コンセント\"&$I$14","v":"コンセント"}]
[null,"*回線はランコネクター接続となります。接続用ケーブル、無線で接続の場合はWiFiルーターを持参ください。"]
["●マイク",null,null,null,null,null,null,null,null,null,null,null,null,null,null,null,null,null,null,null,"計"]
["基本","ワイヤレスハンドマイク２本セット",null,null,null,null,"１セット",890,null,null,null,"A","P","N",{"$f":"IF(I17=\"\",\"\",H17*I17*U17)","v":""},null,{"$f":"\"ハンド\"&$I$17","v":"ハンド"},{"$f":"IF(V17,1)","v":false},{"$f":"IF(W17,1)","v":false},{"$f":"IF(X17,1)","v":false},{"$f":"SUM(R17:T17)","v":0},false,false,false,null,{"$f":"\"ハンド\"&$I$17","v":"ハンド"}]
["ワイヤレスハンドマイクをピンマイクに変更することもできます。"]
["更に追加する場合は、",null,null,null,null,null,null,null,null,null,null,null,null,null,null,null,null,null,null,null,"計"]
["追加","卓上マイク　（ﾏｲｸとｽﾀﾝﾄﾞ一体型）",null,null,null,null,"１本",330,null,null,null,"A","P","N",{"$f":"IF(I20=\"\",\"\",H20*I20*U20)","v":""},null,{"$f":"\"卓上\"&$I$20","v":"卓上"},{"$f":"IF(V20,1)","v":false},false,false,{"$f":"SUM(R20:T20)","v":0},false,false,false,null,{"$f":"\"卓上\"&$I$20","v":"卓上"}]
[null,"ダイナミックマイク　　（有線ﾏｲｸ）",null,null,null,null,"1本",330,null,null,null,"A","P","N",{"$f":"IF(I21=\"\",\"\",H21*I21*U21)","v":""},null,{"$f":"\"ダイナ\"&$I$21","v":"ダイナ"},false,false,false,{"$f":"SUM(R21:T21)","v":0},false,false,false,null,{"$f":"\"ダイナ\"&$I$21","v":"ダイナ"}]
["この部屋でのマイク使用は、最大4本までとなります。マイクスタンド（長・短）が必要な場合は、お申し付けください。"]
["ポータブルアンプを追加することもできますが、その際はアンプ内蔵のスピーカーとなります。"]
["追加","ポータブルアンプ＆ワイヤレス\nハンドマイク２本",null,null,null,null,"１セット",450,null,null,null,"A","P","N",{"$f":"IF(I24=\"\",\"\",H24*I24*U24)","v":""},null,{"$f":"\"アンプ\"&$I$24","v":"アンプ"},{"$f":"IF(V24,1)","v":false},{"$f":"IF(W24,1)","v":false},false,{"$f":"SUM(R24:T24)","v":0},false,false,false,null,{"$f":"\"アンプ\"&$I$24","v":"アンプ"}]
[]
["●スライド、カセット、ビデオ、DVDなどの音響・映像機器"]
["常設","カセットデッキ(録音可、操作卓経由のみ)",null,null,null,null,"１台",330,null,null,null,"A","P","N",{"$f":"IF(I27=\"\",\"\",H27*I27*U27)","v":""},null,{"$f":"\"カセット\"&$I$27","v":"カセット"},{"$f":"IF(V27,1)","v":false},{"$f":"IF(W27,1)","v":false},false,{"$f":"SUM(R27:T27)","v":0},false,false,false,null,{"$f":"\"カセット\"&$I$27","v":"カセット"}]
["常設","プロジェクター＋スクリーン",null,null,null,null,"１セット",890,null,null,null,"A","P","N","",null,{"$f":"\"VP,SC\"&$I$28","v":"VP,SC"},{"$f":"IF(V28,1)","v":false},false,false,{"$f":"SUM(R28:T28)","v":0},false,false,false,null,{"$f":"\"VP,SC\"&$I$28","v":"VP,SC"}]
["常設","ビデオデッキ",null,null,null,null,"１台",450,null,null,null,"A","P","N","",null,{"$f":"\"ビデオ\"&$I$29","v":"ビデオ"},false,false,false,0,false,false,false,null,{"$f":"\"ビデオ\"&$I$29","v":"ビデオ"}]
["常設","DVD・LDプレーヤー",null,null,null,null,"１台",450,null,null,null,"A","P","N","",null,{"$f":"\"DVD\"&$I$30","v":"DVD"},false,false,false,0,false,false,false,null,{"$f":"\"DVD\"&$I$30","v":"DVD"}]
["常設","書画カメラ",null,null,null,null,"１台",450,null,null,null,"A","P","N","",null,{"$f":"\"書画\"&$I$31","v":"書画"},false,false,false,0,false,false,false,null,{"$f":"\"書画\"&$I$31","v":"書画"}]
["常設","スクリーンのみ",null,null,null,null,"１台",120,null,null,null,"A","P","N","",null,{"$f":"\"SC\"&$I$32","v":"SC"},false,false,false,0,false,false,false,null,{"$f":"\"SC\"&$I$32","v":"SC"}]
[null,null,null,null,null,null,null,null,null,null,null,"A","P","N","",null,null,false,false,false,0,false,false,false]
[]
["●追加の備品　"]
["標準仕様の207号室81席(3人×27台)に更に机・椅子を追加される場合"]
["　（追加の上限　机6台　椅子18脚　までとなります。）"]
["追加","会議机",null,null,null,null,"1脚",110,null,null,null,"A","P","N",{"$f":"IF(I38=\"\",\"\",H38*I38*U38)","v":""},null,"机",{"$f":"IF(V38,1)","v":false},false,false,{"$f":"SUM(R38:T38)","v":0},false,false,false,null,"机"]
["追加","会議椅子",null,null,null,null,"1脚",60,null,null,null,"A","P","N","",null,"椅子",false,false,false,0,false,false,false,null,"椅子"]
[]
["●その他の備品"]
["追加","展示パネル",null,null,null,null,"１枚",110,null,null,null,"A","P","N",{"$f":"IF(I42=\"\",\"\",H42*I42*U42)","v":""},null,{"$f":"\"展パネ\"&$I$42","v":"展パネ"},{"$f":"IF(V42,1)","v":false},false,false,{"$f":"SUM(R42:T42)","v":0},false,false,false,null,{"$f":"\"展パネ\"&$I$42","v":"展パネ"}]
["追加","ホワイトボード（コピー白板）",null,null,null,null,"1台",320,null,null,null,"A","P","N","",null,{"$f":"\"WB\"&$I$43","v":"WB"},false,false,false,0,false,false,false,null,{"$f":"\"WB\"&$I$43","v":"WB"}]
[null,null,null,null,null,null,null,null,null,null,null,"①ネット回線",null,null,{"$f":"O14","v":0}]
[null,null,null,null,null,null,null,null,null,null,null,"②備品",null,null,{"$f":"SUM(O17:P43)","v":0}]
[null,null,null,null,null,null,null,null,null,null,null,"合計(①+②)",null,null,{"$f":"SUM(O14:P43)","v":0}]
[]
["●その他 無料貸し出し品"]
["追加","卓上マイクスタンド",null,null,null,null,"本","無料",null,null,null,null,null,null,null,null,{"$f":"\"スタンド短\"&$I$49","v":"スタンド短"},null,null,null,null,null,null,null,null,{"$f":"\"スタンド短\"&$I$49","v":"スタンド短"}]
["追加","マイクスタンド",null,null,null,null,"本","無料",null,null,null,null,null,null,null,null,{"$f":"\"スタンド長\"&$I$50","v":"スタンド長"},null,null,null,null,null,null,null,null,{"$f":"\"スタンド長\"&$I$50","v":"スタンド長"}]
["追加","延長コード（テーブルタップ）",null,null,null,null,"本","無料",null,null,null,null,null,null,null,null,{"$f":"\"延コ\"&$I$51","v":"延コ"},null,null,null,null,null,null,null,null,{"$f":"\"延コ\"&$I$51","v":"延コ"}]
["追加","指し棒",null,null,null,null,"本","無料",null,null,null,null,null,null,null,null,{"$f":"\"HDMI\"&$I$52","v":"HDMI"},null,null,null,null,null,null,null,null,{"$f":"\"HDMI\"&$I$52","v":"HDMI"}]
["追加","マグネット（丸）",null,null,null,null,"個","無料",null,null,null,null,null,null,null,null,{"$f":"\"指棒\"&$I$53","v":"指棒"},null,1,1,1,1,1,2019,null,{"$f":"\"指棒\"&$I$53","v":"指棒"}]
["追加","マグネット（棒）",null,null,null,null,"本","無料",null,null,null,null,null,null,null,null,{"$f":"\"丸マグ\"&$I$54","v":"丸マグ"},null,null,2,2,2,2,2020,null,{"$f":"\"丸マグ\"&$I$54","v":"丸マグ"}]
[null,null,null,null,null,null,null,null,null,null,null,null,null,null,null,null,{"$f":"\"棒マグ\"&$I$55","v":"棒マグ"},null,null,null,3,3,3,2021,null,{"$f":"\"棒マグ\"&$I$55","v":"棒マグ"}]
["※付帯設備の利用料については、上記の表に基づいてお支払いください。",null,null,null,null,null,null,null,null,null,null,null,null,null,null,null,null,null,null,null,4,4,4,2022]
["　 尚、事前のお支払いでも当日追加変更が、あった場合追加分の料金が必要となります。",null,null,null,null,null,null,null,null,null,null,null,null,null,"受　付",null,null,null,null,null,5,5,5,2023]
["※パソコンとプロジェクターの接続は、ミニD-sub15ピン以外は出来ませんので、HDMIを使う",null,null,null,null,null,null,null,null,null,null,null,null,null,null,null,null,null,null,null,6,6,6,2024]
["　場合は変換アダプターをご持参の上、事前にご準備ください。",null,null,null,null,null,null,null,null,null,null,null,null,null,null,null,null,null,"曜日","年","月","日",7,2025]
["　 またパソコンの貸し出しは行っておりません。",null,null,null,null,null,null,null,null,null,null,null,null,null,null,null,null,null,"（月）",2019,1,1,8,2026]
["※お申込みの追加備品につきましては、数に制約があり、ご要望に添えない場合が",null,null,null,null,null,null,null,null,null,null,null,null,null,null,null,null,null,"（火）",2020,2,2,9,2027]
["　 ありますのでごご了承ください。",null,null,null,null,null,null,null,null,null,null,null,null,null,null,null,null,null,"（水）",2021,3,3,10,2028]
["※各会議室にはバトンを設置しておりません。",null,null,null,null,null,null,null,null,null,null,null,null,null,null,null,null,null,"（木）",2022,4,4,11,2029]
["※本申込書にて付帯設備を手配しますので、1部屋1枚で作成お願いします。",null,null,null,null,null,null,null,null,null,null,null,null,null,null,null,null,null,"（金）",2023,5,5,12,2030]
["　 また2日間以上の継続ご利用でも1日毎に作成ください。"]
["※各部屋で使用できる電気容量には上限がございますので、消費電力量の"]
["　 大きい機器類をお持ち込の際には、必ず事前にお申し出ください。"]
[null,null,null,null,null,null,null,null,null,null,null,null,null,null,null,null,null,null,"（土）",2024,6,6]
[null,null,null,null,null,null,null,null,null,null,null,null,null,null,null,null,null,null,"（日）",2025,7,7]
[null,null,null,null,null,null,null,null,null,null,null,null,null,null,null,null,null,null,null,null,8,8]
[null,null,null,null,null,null,null,null,null,null,null,null,null,null,null,null,null,null,null,null,9,9]
[null,null,null,null,null,null,null,null,null,null,null,null,null,null,null,null,null,null,null,null,10,10]
[null,null,null,null,null,null,null,null,null,null,null,null,null,null,null,null,null,null,null,null,11,11]
[null,null,null,null,null,null,null,null,null,null,null,null,null,null,null,null,null,null,null,null,12,12]
[null,null,null,null,null,null,null,null,null,null,null,null,null,null,null,null,null,null,null,null,null,13]
[null,null,null,null,null,null,null,null,null,null,null,null,null,null,null,null,null,null,null,null,null,14]
[null,null,null,null,null,null,null,null,null,null,null,null,null,null,null,null,null,null,null,null,null,15]
[null,null,null,null,null,null,null,null,null,null,null,null,null,null,null,null,null,null,null,null,null,16]
[null,null,null,null,null,null,null,null,null,null,null,null,null,null,null,null,null,null,null,null,null,17]
[null,null,null,null,null,null,null,null,null,null,null,null,null,null,null,null,null,null,null,null,null,18]
[null,null,null,null,null,null,null,null,null,null,null,null,null,null,null,null,null,null,null,null,null,19]
[null,null,null,null,null,null,null,null,null,null,null,null,null,null,null,null,null,null,null,null,null,20]
[null,null,null,null,null,null,null,null,null,null,null,null,null,null,null,null,null,null,null,null,null,21]
[null,null,null,null,null,null,null,null,null,null,null,null,null,null,null,null,null,null,null,null,null,22]
[null,null,null,null,null,null,null,null,null,null,null,null,null,null,null,null,null,null,null,null,null,23]
[null,null,null,null,null,null,null,null,null,null,null,null,null,null,null,null,null,null,null,null,null,24]
[null,null,null,null,null,null,null,null,null,null,null,null,null,null,null,null,null,null,null,null,null,25]
[null,null,null,null,null,null,null,null,null,null,null,null,null,null,null,null,null,null,null,null,null,26]
[null,null,null,null,null,null,null,null,null,null,null,null,null,null,null,null,null,null,null,null,null,27]
[null,null,null,null,null,null,null,null,null,null,null,null,null,null,null,null,null,null,null,null,null,28]
[null,null,null,null,null,null,null,null,null,null,null,null,null,null,null,null,null,null,null,null,null,29]
[null,null,null,null,null,null,null,null,null,null,null,null,null,null,null,null,null,null,null,null,null,30]
[null,null,null,null,null,null,null,null,null,null,null,null,null,null,null,null,null,null,null,null,null,31]